[Event "*** Titled Tuesday 3|2 Blitz"]
[Site "Chess.com"]
[Date "2015.07.07"]
[Round "1"]
[White "nijat_a"]
[Black "kesarev"]
[Result "1-0"]
[WhiteElo "2601"]
[BlackElo "2202"]
[TimeControl "180+2"]
[EndTime "11:02:17 PDT"]
[Termination "nijat_a won by resignation"]

1. d4 {[%clk 0:03:01.2]} 1... Nf6 {[%clk 0:02:59.6]} 2. Nf3 {[%clk 0:03:01.9]}
2... g6 {[%clk 0:03:00.2]} 3. c4 {[%clk 0:03:02.9]} 3... Bg7 {[%clk 0:03:01.1]}
4. Nc3 {[%clk 0:03:04.8]} 4... O-O {[%clk 0:03:02.7]} 5. e4 {[%clk 0:03:06.1]}
5... d6 {[%clk 0:03:03.4]} 6. Be2 {[%clk 0:03:07.4]} 6... e5 {[%clk 0:03:03.9]}
7. O-O {[%clk 0:03:09.3]} 7... Nc6 {[%clk 0:03:04.6]} 8. Be3 {[%clk 0:03:09.4]}
8... Ng4 {[%clk 0:02:52.1]} 9. Bg5 {[%clk 0:03:09.9]} 9... f6 {[%clk 0:02:52.4]}
10. Bc1 {[%clk 0:03:11.1]} 10... Nh6 {[%clk 0:02:44.9]} 11. Be3 {[%clk 0:03:06]}
11... Ng4 {[%clk 0:02:44.3]} 12. Bc1 {[%clk 0:03:06]} 12... Nh6 {[%clk 0:02:45]}
13. d5 {[%clk 0:02:50.6]} 13... Ne7 {[%clk 0:02:45.2]} 14. Be3 {[%clk
0:02:52.5]} 14... Ng4 {[%clk 0:02:41.9]} 15. Bd2 {[%clk 0:02:51.7]} 15... Bh6
{[%clk 0:02:35.1]} 16. h3 {[%clk 0:02:43.2]} 16... Bxd2 {[%clk 0:02:34.6]} 17.
Qxd2 {[%clk 0:02:44]} 1-0

[Event "*** Titled Tuesday 3|2 Blitz"]
[Site "Chess.com"]
[Date "2015.07.07"]
[Round "1"]
[White "WanderingPuppet"]
[Black "Imre91"]
[Result "0-1"]
[WhiteElo "2210"]
[BlackElo "2605"]
[TimeControl "180+2"]
[EndTime "11:03:24 PDT"]
[Termination "Imre91 won by resignation"]

1. e4 {[%clk 0:02:56.1]} 1... e6 {[%clk 0:02:37.9]} 2. d4 {[%clk 0:02:55.4]}
2... d5 {[%clk 0:02:37]} 3. Nc3 {[%clk 0:02:56.7]} 3... dxe4 {[%clk 0:02:36.1]}
4. Nxe4 {[%clk 0:02:58.6]} 4... Bd7 {[%clk 0:02:35.8]} 5. Nf3 {[%clk 0:02:58]}
5... Bc6 {[%clk 0:02:36.1]} 6. Bd3 {[%clk 0:02:59]} 6... Nd7 {[%clk 0:02:34.8]}
7. Qe2 {[%clk 0:02:56.8]} 7... Ngf6 {[%clk 0:02:33.2]} 8. Bd2 {[%clk 0:02:56.9]}
8... Nxe4 {[%clk 0:02:31.1]} 9. Bxe4 {[%clk 0:02:58.8]} 9... Bxe4 {[%clk
0:02:29.9]} 10. Qxe4 {[%clk 0:02:59.4]} 10... c6 {[%clk 0:02:31.5]} 11. O-O-O
{[%clk 0:02:58.4]} 11... Bd6 {[%clk 0:02:32.3]} 12. Kb1 {[%clk 0:02:55.7]} 12...
Qc7 {[%clk 0:02:32.4]} 13. Qh4 {[%clk 0:02:50.7]} 13... h6 {[%clk 0:02:26.2]}
14. Rhe1 {[%clk 0:02:46.6]} 14... Be7 {[%clk 0:02:24.7]} 15. Qg4 {[%clk
0:02:42.9]} 15... Bf6 {[%clk 0:02:23.8]} 16. Bf4 {[%clk 0:02:27.3]} 16... Qb6
{[%clk 0:02:21.8]} 17. Be5 {[%clk 0:02:14.5]} 17... h5 {[%clk 0:02:17]} 18. Qg3
{[%clk 0:02:09.5]} 18... O-O-O {[%clk 0:02:17.6]} 19. Bc7 {[%clk 0:02:07.9]}
19... Qxc7 {[%clk 0:02:14.1]} 0-1

[Event "*** Titled Tuesday 3|2 Blitz"]
[Site "Chess.com"]
[Date "2015.07.07"]
[Round "1"]
[White "viditchess"]
[Black "Jahonas"]
[Result "1-0"]
[WhiteElo "2385"]
[BlackElo "2102"]
[TimeControl "180+2"]
[EndTime "11:04:21 PDT"]
[Termination "viditchess won by resignation"]

1. d4 {[%clk 0:03:01.5]} 1... c6 {[%clk 0:02:59.4]} 2. c4 {[%clk 0:03:02.1]}
2... d5 {[%clk 0:02:54.7]} 3. Nf3 {[%clk 0:03:03.1]} 3... Nf6 {[%clk 0:02:52.3]}
4. e3 {[%clk 0:03:01.7]} 4... dxc4 {[%clk 0:02:53.5]} 5. Bxc4 {[%clk 0:03:01.8]}
5... e6 {[%clk 0:02:53.1]} 6. O-O {[%clk 0:03:02.3]} 6... Be7 {[%clk 0:02:54]}
7. Qe2 {[%clk 0:03:02.8]} 7... b6 {[%clk 0:02:55.3]} 8. e4 {[%clk 0:03:03.5]}
8... O-O {[%clk 0:02:56.3]} 9. Nc3 {[%clk 0:03:02.6]} 9... a5 {[%clk 0:02:57.5]}
10. Bf4 {[%clk 0:02:50]} 10... Ba6 {[%clk 0:02:56.5]} 11. Rfd1 {[%clk
0:02:25.2]} 11... Bxc4 {[%clk 0:02:53.9]} 12. Qxc4 {[%clk 0:02:27.1]} 12... b5
{[%clk 0:02:54.3]} 13. Qe2 {[%clk 0:02:28.2]} 13... b4 {[%clk 0:02:54.2]} 14.
Na4 {[%clk 0:02:26.4]} 14... Nbd7 {[%clk 0:02:54.2]} 15. Rac1 {[%clk 0:02:27.4]}
15... Nh5 {[%clk 0:02:16.7]} 16. Be3 {[%clk 0:02:26.1]} 16... Qc8 {[%clk
0:02:12.7]} 17. Ne5 {[%clk 0:02:25.9]} 17... Nxe5 {[%clk 0:02:10.1]} 18. dxe5
{[%clk 0:02:27.8]} 18... g6 {[%clk 0:02:09.7]} 19. Nb6 {[%clk 0:02:28.7]} 19...
Qa6 {[%clk 0:02:09.6]} 20. Qf3 {[%clk 0:02:15.4]} 20... Rad8 {[%clk 0:02:01.6]}
21. g4 {[%clk 0:02:14.9]} 21... Ng7 {[%clk 0:01:45.7]} 22. Nd7 {[%clk 0:02:15]}
22... Rxd7 {[%clk 0:01:42.2]} 23. Rxd7 {[%clk 0:02:16.9]} 23... Re8 {[%clk
0:01:37.1]} 24. Bc5 {[%clk 0:02:15.7]} 1-0

[Event "*** Titled Tuesday 3|2 Blitz"]
[Site "Chess.com"]
[Date "2015.07.07"]
[Round "1"]
[White "facu57"]
[Black "Hikaru"]
[Result "0-1"]
[WhiteElo "2222"]
[BlackElo "2833"]
[TimeControl "180+2"]
[EndTime "11:04:53 PDT"]
[Termination "Hikaru won by resignation"]

1. e4 {[%clk 0:03:00.9]} 1... d6 {[%clk 0:02:55.6]} 2. d4 {[%clk 0:03:01.2]}
2... g6 {[%clk 0:02:57.5]} 3. Nc3 {[%clk 0:03:01.4]} 3... Bg7 {[%clk 0:02:59.1]}
4. f4 {[%clk 0:03:02.1]} 4... c6 {[%clk 0:02:59.2]} 5. Nf3 {[%clk 0:03:01.2]}
5... Bg4 {[%clk 0:03:00.3]} 6. Be3 {[%clk 0:02:57.7]} 6... Qb6 {[%clk
0:03:01.8]} 7. Rb1 {[%clk 0:02:52.5]} 7... Bxf3 {[%clk 0:03:00.3]} 8. gxf3
{[%clk 0:02:51.9]} 8... e5 {[%clk 0:03:01.9]} 9. Ne2 {[%clk 0:02:45.5]} 9...
Qa5+ {[%clk 0:02:56.1]} 10. Qd2 {[%clk 0:02:45.9]} 10... Qxd2+ {[%clk
0:02:56.7]} 11. Kxd2 {[%clk 0:02:42.8]} 11... Nd7 {[%clk 0:02:53.8]} 12. Bh3
{[%clk 0:02:42.1]} 12... Ngf6 {[%clk 0:02:54.2]} 13. c3 {[%clk 0:02:18.3]} 13...
Rd8 {[%clk 0:02:45.2]} 14. Kc2 {[%clk 0:02:18.3]} 14... Bh6 {[%clk 0:02:45.6]}
15. Bc1 {[%clk 0:02:15.5]} 15... exd4 {[%clk 0:02:39.8]} 16. Nxd4 {[%clk
0:02:15.9]} 16... Nh5 {[%clk 0:02:39.5]} 17. f5 {[%clk 0:02:16.1]} 17... Bxc1
{[%clk 0:02:40.7]} 18. Rbxc1 {[%clk 0:02:17.2]} 18... Nf4 {[%clk 0:02:42.2]} 19.
Bf1 {[%clk 0:02:17.1]} 19... Ne5 {[%clk 0:02:43.3]} 20. Ne2 {[%clk 0:02:09.1]}
20... g5 {[%clk 0:02:43.8]} 21. Nxf4 {[%clk 0:02:09.9]} 21... gxf4 {[%clk
0:02:45.7]} 22. Be2 {[%clk 0:02:11.3]} 22... Ke7 {[%clk 0:02:45.9]} 23. Rhg1
{[%clk 0:02:12.7]} 23... Rhg8 {[%clk 0:02:47.1]} 24. Kd2 {[%clk 0:02:13.1]}
24... h6 {[%clk 0:02:45]} 25. b3 {[%clk 0:02:13.5]} 25... Rg5 {[%clk 0:02:45.8]}
26. h4 {[%clk 0:02:12.9]} 26... Rh5 {[%clk 0:02:43.4]} 27. Rh1 {[%clk
0:02:12.2]} 27... d5 {[%clk 0:02:41.6]} 28. exd5 {[%clk 0:02:10.6]} 28... Rxd5+
{[%clk 0:02:41.4]} 29. Ke1 {[%clk 0:02:11.7]} 29... Rxf5 {[%clk 0:02:43.3]} 30.
Kf2 {[%clk 0:02:10.1]} 30... Rd2 {[%clk 0:02:42.2]} 31. Kf1 {[%clk 0:02:08.7]}
31... Rxa2 {[%clk 0:02:42.7]} 32. Re1 {[%clk 0:02:09.2]} 32... Rf6 {[%clk
0:02:37.2]} 33. Rg1 {[%clk 0:02:08.6]} 33... Re6 {[%clk 0:02:35]} 34. Rg8 {[%clk
0:02:05.7]} 34... Ra3 {[%clk 0:02:36.3]} 35. Rb1 {[%clk 0:02:05.2]} 35... b5
{[%clk 0:02:28.8]} 36. Rb8 {[%clk 0:02:03.6]} 36... a5 {[%clk 0:02:29.7]} 37.
Rb2 {[%clk 0:02:04.8]} 37... Rd6 {[%clk 0:02:29.3]} 38. Kf2 {[%clk 0:02:05.1]}
38... Kf6 {[%clk 0:02:29.2]} 39. Rh8 {[%clk 0:02:00.9]} 39... Kg7 {[%clk
0:02:30.2]} 40. Re8 {[%clk 0:02:02.5]} 40... Nd3+ {[%clk 0:02:31.3]} 41. Bxd3
{[%clk 0:02:03.3]} 41... Rxd3 {[%clk 0:02:33.2]} 0-1

[Event "*** Titled Tuesday 3|2 Blitz"]
[Site "Chess.com"]
[Date "2015.07.07"]
[Round "1"]
[White "Bab3s"]
[Black "jcibarra"]
[Result "0-1"]
[WhiteElo "2188"]
[BlackElo "2566"]
[TimeControl "180+2"]
[EndTime "11:05:23 PDT"]
[Termination "jcibarra won by resignation"]

1. e4 {[%clk 0:02:58.1]} 1... c5 {[%clk 0:03:00.2]} 2. c3 {[%clk 0:02:58.6]}
2... Nf6 {[%clk 0:03:00.7]} 3. e5 {[%clk 0:02:59.7]} 3... Nd5 {[%clk 0:03:01.9]}
4. Nf3 {[%clk 0:03:01.3]} 4... e6 {[%clk 0:03:02.7]} 5. Bc4 {[%clk 0:03:02.7]}
5... d6 {[%clk 0:03:03.6]} 6. O-O {[%clk 0:03:03]} 6... Nc6 {[%clk 0:03:03.7]}
7. d4 {[%clk 0:03:03.5]} 7... cxd4 {[%clk 0:03:05.1]} 8. cxd4 {[%clk 0:03:04.7]}
8... Be7 {[%clk 0:03:05.8]} 9. Qe2 {[%clk 0:03:03.6]} 9... O-O {[%clk
0:03:06.5]} 10. Nc3 {[%clk 0:03:04.8]} 10... Nxc3 {[%clk 0:03:07.1]} 11. bxc3
{[%clk 0:03:06.7]} 11... dxe5 {[%clk 0:03:08.7]} 12. dxe5 {[%clk 0:03:08.6]}
12... Qa5 {[%clk 0:03:09.3]} 13. Bd2 {[%clk 0:03:09.8]} 13... Bd7 {[%clk
0:03:10.2]} 14. Rfe1 {[%clk 0:03:07.4]} 14... Rfd8 {[%clk 0:03:09.9]} 15. Bb3
{[%clk 0:03:08.4]} 15... Rac8 {[%clk 0:03:06.8]} 16. Qe4 {[%clk 0:03:07.3]}
16... Be8 {[%clk 0:03:07]} 17. Rad1 {[%clk 0:02:35.7]} 17... Qc7 {[%clk
0:03:02.3]} 18. Ng5 {[%clk 0:02:09.3]} 18... g6 {[%clk 0:03:01.9]} 19. h4 {[%clk
0:02:04]} 19... Na5 {[%clk 0:02:57.9]} 20. h5 {[%clk 0:01:41.3]} 20... Nxb3
{[%clk 0:02:53.5]} 21. axb3 {[%clk 0:01:42]} 21... Rxd2 {[%clk 0:02:52.7]} 22.
Nxe6 {[%clk 0:01:05.3]} 22... Qxc3 {[%clk 0:02:51.5]} 23. Qxb7 {[%clk
0:00:39.2]} 23... Rd7 {[%clk 0:02:31.3]} 24. Qe4 {[%clk 0:00:10.9]} 24... Rxd1
{[%clk 0:02:31]} 25. Rxd1 {[%clk 0:00:12.2]} 25... fxe6 {[%clk 0:02:30.4]} 0-1

[Event "*** Titled Tuesday 3|2 Blitz"]
[Site "Chess.com"]
[Date "2015.07.07"]
[Round "1"]
[White "geeeeri"]
[Black "AlexCn1"]
[Result "1-0"]
[WhiteElo "2318"]
[BlackElo "2038"]
[TimeControl "180+2"]
[EndTime "11:06:42 PDT"]
[Termination "geeeeri won by resignation"]

1. e4 {[%clk 0:02:56.2]} 1... e5 {[%clk 0:02:56.9]} 2. Nf3 {[%clk 0:02:55.4]}
2... Nc6 {[%clk 0:02:55.9]} 3. Bc4 {[%clk 0:02:55.7]} 3... Bc5 {[%clk
0:02:55.7]} 4. c3 {[%clk 0:02:55.5]} 4... Nf6 {[%clk 0:02:56.6]} 5. d3 {[%clk
0:02:55.7]} 5... O-O {[%clk 0:02:56.9]} 6. O-O {[%clk 0:02:57]} 6... a6 {[%clk
0:02:57.8]} 7. Bb3 {[%clk 0:02:55.4]} 7... h6 {[%clk 0:02:57]} 8. Re1 {[%clk
0:02:55.4]} 8... Re8 {[%clk 0:02:55.8]} 9. h3 {[%clk 0:02:55.7]} 9... b5 {[%clk
0:02:47.3]} 10. Nbd2 {[%clk 0:02:49.1]} 10... d6 {[%clk 0:02:44.6]} 11. Nf1
{[%clk 0:02:48.3]} 11... Be6 {[%clk 0:02:45.5]} 12. g4 {[%clk 0:02:46.5]} 12...
Qd7 {[%clk 0:02:41.9]} 13. Ng3 {[%clk 0:02:37.2]} 13... Bxg4 {[%clk 0:02:28.8]}
14. hxg4 {[%clk 0:02:37.8]} 14... Qxg4 {[%clk 0:02:28.4]} 15. Kg2 {[%clk
0:02:31.1]} 15... Nh5 {[%clk 0:02:27.4]} 16. Nh2 {[%clk 0:02:31.1]} 16... Nf4+
{[%clk 0:02:25.9]} 17. Bxf4 {[%clk 0:02:30.8]} 17... Qxf4 {[%clk 0:02:26.6]} 18.
Qf3 {[%clk 0:02:30.1]} 18... Ne7 {[%clk 0:02:22]} 19. d4 {[%clk 0:02:27]} 19...
Qxf3+ {[%clk 0:02:20.9]} 20. Nxf3 {[%clk 0:02:26.4]} 20... exd4 {[%clk
0:02:22.6]} 21. cxd4 {[%clk 0:02:25.8]} 21... Bb4 {[%clk 0:02:23.5]} 22. Re3
{[%clk 0:02:18]} 22... Ng6 {[%clk 0:02:24.6]} 23. Ne2 {[%clk 0:02:10.8]} 23...
c5 {[%clk 0:02:24.7]} 24. a3 {[%clk 0:02:08]} 24... Ba5 {[%clk 0:02:21.5]} 25.
dxc5 {[%clk 0:02:03.2]} 25... dxc5 {[%clk 0:02:21]} 26. Bd5 {[%clk 0:02:04.2]}
26... Rad8 {[%clk 0:02:20]} 27. Kg3 {[%clk 0:02:02.9]} 27... Bc7+ {[%clk
0:02:20.1]} 28. Kg4 {[%clk 0:01:56.8]} 28... h5+ {[%clk 0:02:17.3]} 29. Kxh5
{[%clk 0:01:55.1]} 29... Nf4+ {[%clk 0:02:17.8]} 30. Nxf4 {[%clk 0:01:54.3]}
30... Bxf4 {[%clk 0:02:17.1]} 31. Ree1 {[%clk 0:01:54.1]} 31... Rd6 {[%clk
0:01:51.9]} 32. Kg4 {[%clk 0:01:50.7]} 32... Bh6 {[%clk 0:01:51.7]} 33. Nh4
{[%clk 0:01:44.4]} 33... Re5 {[%clk 0:01:48.3]} 34. f4 {[%clk 0:01:44]} 34...
Re8 {[%clk 0:01:43.8]} 35. Rad1 {[%clk 0:01:42.3]} 35... Kf8 {[%clk 0:01:41.7]}
36. Nf5 {[%clk 0:01:41.5]} 36... Rg6+ {[%clk 0:01:42.5]} 37. Kf3 {[%clk
0:01:42.2]} 37... Rd8 {[%clk 0:01:30.7]} 38. Rg1 {[%clk 0:01:36.3]} 38... Rxg1
{[%clk 0:01:21.9]} 39. Rxg1 {[%clk 0:01:35.9]} 39... b4 {[%clk 0:01:23.1]} 40.
a4 {[%clk 0:01:35]} 40... c4 {[%clk 0:01:23.1]} 41. Nxh6 {[%clk 0:01:34.7]}
41... gxh6 {[%clk 0:01:23.8]} 42. Bxc4 {[%clk 0:01:35.2]} 42... Rd2 {[%clk
0:01:21.7]} 43. b3 {[%clk 0:01:36.4]} 43... Rc2 {[%clk 0:01:16.7]} 44. e5 {[%clk
0:01:36.6]} 1-0

[Event "*** Titled Tuesday 3|2 Blitz"]
[Site "Chess.com"]
[Date "2015.07.07"]
[Round "1"]
[White "BjarkeSahl"]
[Black "jlandaw"]
[Result "1-0"]
[WhiteElo "2106"]
[BlackElo "2337"]
[TimeControl "180+2"]
[EndTime "11:07:09 PDT"]
[Termination "BjarkeSahl won on time"]

1. e4 {[%clk 0:02:53.4]} 1... e5 {[%clk 0:02:47.2]} 2. Nf3 {[%clk 0:02:53.6]}
2... Nc6 {[%clk 0:02:47.9]} 3. d4 {[%clk 0:02:54.5]} 3... exd4 {[%clk
0:02:48.7]} 4. Bc4 {[%clk 0:02:56]} 4... Nf6 {[%clk 0:02:49.3]} 5. e5 {[%clk
0:02:57]} 5... d5 {[%clk 0:02:44.2]} 6. Bb5 {[%clk 0:02:57.6]} 6... Ne4 {[%clk
0:02:41.5]} 7. Nxd4 {[%clk 0:02:58.4]} 7... Bc5 {[%clk 0:02:41.6]} 8. O-O {[%clk
0:02:56.4]} 8... O-O {[%clk 0:02:40.8]} 9. Bxc6 {[%clk 0:02:53.3]} 9... bxc6
{[%clk 0:02:40.7]} 10. f3 {[%clk 0:02:54.3]} 10... f6 {[%clk 0:02:39.4]} 11. Kh1
{[%clk 0:02:48.3]} 11... fxe5 {[%clk 0:01:58.9]} 12. Nxc6 {[%clk 0:02:30.2]}
12... Qh4 {[%clk 0:01:48.1]} 13. fxe4 {[%clk 0:02:28.7]} 13... Bg4 {[%clk
0:01:48.9]} 14. Qxd5+ {[%clk 0:01:58.3]} 14... Kh8 {[%clk 0:01:35.5]} 15. Nd2
{[%clk 0:01:59.7]} 15... Bf2 {[%clk 0:00:53]} 16. Nxe5 {[%clk 0:01:50.5]} 16...
Bh5 {[%clk 0:00:22.9]} 17. Ndf3 {[%clk 0:01:06]} 17... Qf6 {[%clk 0:00:22.3]}
18. Bg5 {[%clk 0:00:59.4]} 18... Qb6 {[%clk 0:00:22.8]} 19. Bh4 {[%clk 0:00:53]}
19... Bc5 {[%clk 0:00:22.3]} 20. Ng5 {[%clk 0:00:52.1]} 20... Rxf1+ {[%clk
0:00:19]} 21. Rxf1 {[%clk 0:00:51.9]} 21... h6 {[%clk 0:00:15.4]} 22. Nef7+
{[%clk 0:00:52]} 22... Bxf7 {[%clk 0:00:15.1]} 23. Nxf7+ {[%clk 0:00:52.8]} 1-0

[Event "*** Titled Tuesday 3|2 Blitz"]
[Site "Chess.com"]
[Date "2015.07.07"]
[Round "1"]
[White "lukas_111111"]
[Black "AlexanderL"]
[Result "0-1"]
[WhiteElo "2169"]
[BlackElo "2525"]
[TimeControl "180+2"]
[EndTime "11:07:51 PDT"]
[Termination "AlexanderL won on time"]

1. d4 {[%clk 0:02:50.3]} 1... Nf6 {[%clk 0:02:56.2]} 2. c4 {[%clk 0:02:50.5]}
2... c5 {[%clk 0:02:50.1]} 3. d5 {[%clk 0:02:50.5]} 3... b5 {[%clk 0:02:41.8]}
4. cxb5 {[%clk 0:02:49.5]} 4... a6 {[%clk 0:02:42.5]} 5. bxa6 {[%clk 0:02:50]}
5... g6 {[%clk 0:02:42.6]} 6. Nc3 {[%clk 0:02:49.9]} 6... Bg7 {[%clk 0:02:43.8]}
7. e4 {[%clk 0:02:50.4]} 7... O-O {[%clk 0:02:42.8]} 8. Nf3 {[%clk 0:02:48.2]}
8... Qa5 {[%clk 0:02:43.6]} 9. Nd2 {[%clk 0:02:42.9]} 9... Bxa6 {[%clk
0:02:42.8]} 10. Be2 {[%clk 0:02:30]} 10... e6 {[%clk 0:02:39.4]} 11. O-O {[%clk
0:02:22.6]} 11... exd5 {[%clk 0:02:38.4]} 12. exd5 {[%clk 0:02:23.3]} 12... Re8
{[%clk 0:02:36.4]} 13. Nc4 {[%clk 0:02:16]} 13... Qc7 {[%clk 0:02:32.5]} 14. d6
{[%clk 0:02:05.8]} 14... Qa7 {[%clk 0:02:33.4]} 15. Bg5 {[%clk 0:01:59.7]} 15...
Nc6 {[%clk 0:02:31.8]} 16. a4 {[%clk 0:01:48.7]} 16... Nd4 {[%clk 0:02:30.8]}
17. Bd3 {[%clk 0:01:37]} 17... Bxc4 {[%clk 0:02:22.7]} 18. Bxc4 {[%clk
0:01:37.4]} 18... Qb6 {[%clk 0:02:23.9]} 19. Bxf6 {[%clk 0:01:05.6]} 19... Bxf6
{[%clk 0:02:24.3]} 20. Nb5 {[%clk 0:00:57.2]} 20... Nxb5 {[%clk 0:02:14.1]} 21.
Bxb5 {[%clk 0:00:49.8]} 21... Re6 {[%clk 0:02:03.9]} 22. Qf3 {[%clk 0:00:45.2]}
22... Ra7 {[%clk 0:02:02.9]} 23. Rfd1 {[%clk 0:00:34.2]} 23... Rxd6 {[%clk
0:02:00]} 24. Rxd6 {[%clk 0:00:34.1]} 24... Qxd6 {[%clk 0:02:00.9]} 25. Rd1
{[%clk 0:00:35]} 25... Bd4 {[%clk 0:02:01.5]} 26. Bc4 {[%clk 0:00:34]} 26... Qe7
{[%clk 0:02:00.2]} 27. b3 {[%clk 0:00:22.7]} 27... Kg7 {[%clk 0:02:01.2]} 28. g3
{[%clk 0:00:22.7]} 28... Rc7 {[%clk 0:01:52.3]} 29. Kg2 {[%clk 0:00:23.2]} 29...
Rc6 {[%clk 0:01:53.6]} 30. Rd2 {[%clk 0:00:20.3]} 30... Rf6 {[%clk 0:01:53.6]}
31. Qe2 {[%clk 0:00:08.8]} 31... Rxf2+ {[%clk 0:01:51.4]} 32. Qxf2 {[%clk
0:00:09.8]} 32... Bxf2 {[%clk 0:01:52.5]} 33. Rxf2 {[%clk 0:00:11.7]} 33... Qe4+
{[%clk 0:01:52.2]} 34. Kg1 {[%clk 0:00:11.4]} 34... d5 {[%clk 0:01:51.2]} 35.
Bf1 {[%clk 0:00:10.1]} 35... Qb4 {[%clk 0:01:49.1]} 36. Rf3 {[%clk 0:00:08.6]}
36... f5 {[%clk 0:01:43.1]} 37. Bb5 {[%clk 0:00:05.5]} 37... Kf6 {[%clk
0:01:43.7]} 38. Kg2 {[%clk 0:00:04.5]} 38... c4 {[%clk 0:01:40.3]} 39. bxc4
{[%clk 0:00:04]} 39... dxc4 {[%clk 0:01:41.5]} 40. Rf2 {[%clk 0:00:04.5]} 40...
c3 {[%clk 0:01:42.3]} 0-1

[Event "*** Titled Tuesday 3|2 Blitz"]
[Site "Chess.com"]
[Date "2015.07.07"]
[Round "1"]
[White "FancyPlaySyndrome"]
[Black "MinhGTrAn"]
[Result "0-1"]
[WhiteElo "2186"]
[BlackElo "2577"]
[TimeControl "180+2"]
[EndTime "11:07:56 PDT"]
[Termination "MinhGTrAn won by checkmate"]

1. e4 {[%clk 0:02:57.2]} 1... c5 {[%clk 0:02:59.9]} 2. Nf3 {[%clk 0:02:58.2]}
2... d6 {[%clk 0:03:01]} 3. d4 {[%clk 0:02:57.5]} 3... cxd4 {[%clk 0:03:02.9]}
4. Nxd4 {[%clk 0:02:59.4]} 4... Nf6 {[%clk 0:03:03]} 5. Nc3 {[%clk 0:02:59.7]}
5... a6 {[%clk 0:03:04.5]} 6. f3 {[%clk 0:03:00.7]} 6... e5 {[%clk 0:03:05.6]}
7. Nb3 {[%clk 0:03:01.9]} 7... Be6 {[%clk 0:03:06.5]} 8. Be3 {[%clk 0:03:03.6]}
8... Nbd7 {[%clk 0:03:07.9]} 9. Qd2 {[%clk 0:03:04.2]} 9... b5 {[%clk
0:03:08.5]} 10. Nd5 {[%clk 0:02:58.1]} 10... Nxd5 {[%clk 0:03:03.4]} 11. exd5
{[%clk 0:02:58.9]} 11... Bf5 {[%clk 0:03:05.1]} 12. Na5 {[%clk 0:02:49.1]} 12...
Qc7 {[%clk 0:02:39.4]} 13. Rc1 {[%clk 0:02:41.2]} 13... Be7 {[%clk 0:02:35.3]}
14. Nc6 {[%clk 0:02:40.9]} 14... Nf6 {[%clk 0:02:27.2]} 15. c4 {[%clk
0:02:32.3]} 15... bxc4 {[%clk 0:02:24.9]} 16. Bxc4 {[%clk 0:02:34.2]} 16... O-O
{[%clk 0:02:23.6]} 17. O-O {[%clk 0:02:34.7]} 17... Rfe8 {[%clk 0:01:56]} 18. b4
{[%clk 0:02:27.3]} 18... e4 {[%clk 0:01:27.5]} 19. a4 {[%clk 0:02:02.6]} 19...
exf3 {[%clk 0:01:26.7]} 20. gxf3 {[%clk 0:01:58.8]} 20... Bh3 {[%clk 0:00:54.3]}
21. Rfe1 {[%clk 0:01:52.6]} 21... Qd7 {[%clk 0:00:49.1]} 22. Qf2 {[%clk
0:01:32.7]} 22... Qf5 {[%clk 0:00:40.9]} 23. Bd4 {[%clk 0:00:51.7]} 23... Bf8
{[%clk 0:00:34.6]} 24. Qg3 {[%clk 0:00:51.3]} 24... Nh5 {[%clk 0:00:35.2]} 25.
Qf2 {[%clk 0:00:47.3]} 25... Nf4 {[%clk 0:00:33.2]} 26. Qg3 {[%clk 0:00:46.9]}
26... Nh5 {[%clk 0:00:29.1]} 27. Qf2 {[%clk 0:00:47.4]} 27... g6 {[%clk
0:00:30.8]} 28. b5 {[%clk 0:00:41]} 28... axb5 {[%clk 0:00:31.4]} 29. axb5
{[%clk 0:00:41.8]} 29... Bh6 {[%clk 0:00:23.9]} 30. Rb1 {[%clk 0:00:41.3]} 30...
Nf4 {[%clk 0:00:10.3]} 31. b6 {[%clk 0:00:37.6]} 31... Qg5+ {[%clk 0:00:05.4]}
32. Kh1 {[%clk 0:00:38.7]} 32... Bg2+ {[%clk 0:00:06.3]} 33. Kg1 {[%clk
0:00:39.6]} 33... Nh3# {[%clk 0:00:07.8]} 0-1

[Event "*** Titled Tuesday 3|2 Blitz"]
[Site "Chess.com"]
[Date "2015.07.07"]
[Round "1"]
[White "newtie4"]
[Black "goldaxe"]
[Result "1-0"]
[WhiteElo "2463"]
[BlackElo "2156"]
[TimeControl "180+2"]
[EndTime "11:07:56 PDT"]
[Termination "newtie4 won by resignation"]

1. d4 {[%clk 0:02:58.7]} 1... Nf6 {[%clk 0:02:57.9]} 2. Bg5 {[%clk 0:02:57.7]}
2... Ne4 {[%clk 0:02:57]} 3. Bf4 {[%clk 0:02:58.2]} 3... d5 {[%clk 0:02:57.9]}
4. e3 {[%clk 0:02:59.1]} 4... c5 {[%clk 0:02:57.2]} 5. Bd3 {[%clk 0:02:54.6]}
5... Nf6 {[%clk 0:02:54.2]} 6. dxc5 {[%clk 0:02:37.1]} 6... Nc6 {[%clk
0:02:50.8]} 7. Nf3 {[%clk 0:02:37.5]} 7... Bg4 {[%clk 0:02:36.6]} 8. Bg5 {[%clk
0:02:27.4]} 8... e5 {[%clk 0:02:24.9]} 9. Be2 {[%clk 0:02:07.2]} 9... Bxc5
{[%clk 0:02:21.3]} 10. Bxf6 {[%clk 0:02:03.3]} 10... gxf6 {[%clk 0:02:22.3]} 11.
Nc3 {[%clk 0:02:01.7]} 11... Be6 {[%clk 0:02:19.9]} 12. O-O {[%clk 0:02:01.9]}
12... O-O {[%clk 0:02:18.2]} 13. Nd2 {[%clk 0:01:57.1]} 13... Qd7 {[%clk
0:01:54.2]} 14. Nb3 {[%clk 0:01:55.7]} 14... Bb6 {[%clk 0:01:53.8]} 15. Na4
{[%clk 0:01:56.1]} 15... Rac8 {[%clk 0:01:29.6]} 16. Qd2 {[%clk 0:01:48.9]}
16... Rfd8 {[%clk 0:01:23.5]} 17. Rad1 {[%clk 0:01:46.9]} 17... d4 {[%clk
0:01:21.9]} 18. Nxb6 {[%clk 0:01:46.9]} 18... axb6 {[%clk 0:01:22.2]} 19. Bd3
{[%clk 0:01:42.3]} 19... Bf5 {[%clk 0:01:07.3]} 20. Qe2 {[%clk 0:01:39.2]} 20...
Nb4 {[%clk 0:00:40.2]} 21. exd4 {[%clk 0:01:28]} 21... Nxc2 {[%clk 0:00:34]} 22.
Bxc2 {[%clk 0:01:14.2]} 22... Rxc2 {[%clk 0:00:34.2]} 23. Qf3 {[%clk 0:01:13.5]}
23... e4 {[%clk 0:00:28.5]} 24. Qf4 {[%clk 0:01:08.9]} 24... Rxb2 {[%clk
0:00:26.8]} 25. d5 {[%clk 0:01:10.1]} 25... Rxa2 {[%clk 0:00:17.8]} 26. h3
{[%clk 0:01:07.7]} 26... Bg6 {[%clk 0:00:18.6]} 27. Qxf6 {[%clk 0:01:07.9]}
27... Re8 {[%clk 0:00:18.6]} 28. d6 {[%clk 0:01:07.9]} 28... Ra3 {[%clk
0:00:17.8]} 29. Nd4 {[%clk 0:01:07.9]} 29... Rd3 {[%clk 0:00:18.8]} 30. Ne2
{[%clk 0:01:06.3]} 30... Re6 {[%clk 0:00:17.3]} 31. Qf4 {[%clk 0:01:06.9]} 31...
Qxd6 {[%clk 0:00:18.2]} 32. Qc1 {[%clk 0:01:05.5]} 32... Re5 {[%clk 0:00:16]}
33. Nf4 {[%clk 0:01:05.1]} 33... Rxd1 {[%clk 0:00:16]} 34. Rxd1 {[%clk
0:01:05.7]} 34... Qe7 {[%clk 0:00:17]} 35. Nd5 {[%clk 0:01:03.1]} 35... Qe6
{[%clk 0:00:16.9]} 36. Ne3 {[%clk 0:01:02.1]} 36... b5 {[%clk 0:00:16.4]} 37.
Ng4 {[%clk 0:01:01.2]} 37... Rd5 {[%clk 0:00:17.5]} 38. Rxd5 {[%clk 0:01:01.2]}
38... Qxd5 {[%clk 0:00:19.4]} 39. Nf6+ {[%clk 0:01:00.9]} 1-0